[Event "*** Biggest EVER Titled Tuesday"]
[Site "Chess.com"]
[Date "2018.04.17"]
[Round "5"]
[White "PawnEatingZombie"]
[Black "sandager"]
[Result "1-0"]
[WhiteElo "2011"]
[BlackElo "1934"]
[TimeControl "180+2"]
[EndTime "14:06:53 PDT"]
[Termination "PawnEatingZombie won by resignation"]

1. d4 {[%clk 0:03:01.9]} 1... Nf6 {[%clk 0:02:58.5]} 2. c4 {[%clk 0:03:03.1]}
2... g6 {[%clk 0:02:58.4]} 3. Nc3 {[%clk 0:03:04.3]} 3... d5 {[%clk 0:02:59.1]}
4. Nf3 {[%clk 0:03:03.8]} 4... Bg7 {[%clk 0:02:59.9]} 5. cxd5 {[%clk 0:03:05.3]}
5... Nxd5 {[%clk 0:03:00.4]} 6. Bg5 {[%clk 0:03:06.9]} 6... c5 {[%clk
0:02:51.7]} 7. Rc1 {[%clk 0:03:06.6]} 7... Nc6 {[%clk 0:02:42.1]} 8. Nxd5 {[%clk
0:03:05.7]} 8... Qxd5 {[%clk 0:02:41.8]} 9. Rxc5 {[%clk 0:03:07.6]} 9... Qxa2
{[%clk 0:02:39.3]} 10. e3 {[%clk 0:03:07.3]} 10... Qxb2 {[%clk 0:02:09.7]} 11.
Bc4 {[%clk 0:03:07]} 11... Qb4+ {[%clk 0:02:03.9]} 12. Nd2 {[%clk 0:03:06.7]}
12... a6 {[%clk 0:01:39.5]} 13. O-O {[%clk 0:02:29.1]} 13... O-O {[%clk
0:01:37.8]} 14. Bd5 {[%clk 0:01:55.2]} 14... Bd7 {[%clk 0:00:56.2]} 15. Qc2
{[%clk 0:01:49.4]} 15... e6 {[%clk 0:00:31.4]} 16. Bf3 {[%clk 0:01:45.6]} 16...
Bxd4 {[%clk 0:00:18.9]} 17. Bxc6 {[%clk 0:01:11.9]} 17... Bxc6 {[%clk
0:00:18.5]} 18. exd4 {[%clk 0:01:10.7]} 18... Qxd4 {[%clk 0:00:19.5]} 19. Qc4
{[%clk 0:00:57.3]} 19... Qd7 {[%clk 0:00:15.2]} 20. Ne4 {[%clk 0:00:50.8]} 20...
Rac8 {[%clk 0:00:15.7]} 21. Nf6+ {[%clk 0:00:50.8]} 1-0

[Event "*** Biggest EVER Titled Tuesday"]
[Site "Chess.com"]
[Date "2018.04.17"]
[Round "5"]
[White "Generalas"]
[Black "BlackBoarder"]
[Result "1-0"]
[WhiteElo "2184"]
[BlackElo "2232"]
[TimeControl "180+2"]
[EndTime "14:06:57 PDT"]
[Termination "Generalas won by resignation"]

1. e4 {[%clk 0:03:01.9]} 1... e6 {[%clk 0:02:59.8]} 2. d4 {[%clk 0:03:00.9]}
2... d5 {[%clk 0:03:00.8]} 3. exd5 {[%clk 0:03:01.8]} 3... exd5 {[%clk
0:03:01.9]} 4. c4 {[%clk 0:03:00.2]} 4... Nf6 {[%clk 0:03:01.5]} 5. Nc3 {[%clk
0:03:00.9]} 5... Be6 {[%clk 0:03:01.2]} 6. Nf3 {[%clk 0:02:57.5]} 6... Be7
{[%clk 0:02:31.4]} 7. Be2 {[%clk 0:02:46.1]} 7... O-O {[%clk 0:02:31.8]} 8. O-O
{[%clk 0:02:46.4]} 8... dxc4 {[%clk 0:02:18.5]} 9. Ne5 {[%clk 0:02:43.3]} 9...
c6 {[%clk 0:02:08.4]} 10. f4 {[%clk 0:02:41.3]} 10... c5 {[%clk 0:01:39.4]} 11.
f5 {[%clk 0:02:29.4]} 11... Bc8 {[%clk 0:00:26.7]} 12. d5 {[%clk 0:02:26.2]}
12... Bd6 {[%clk 0:00:17.8]} 13. Nxc4 {[%clk 0:02:25]} 13... Re8 {[%clk
0:00:11.8]} 14. Nxd6 {[%clk 0:02:20.2]} 14... Qxd6 {[%clk 0:00:12.4]} 15. Bf4
{[%clk 0:02:20.8]} 15... Qd8 {[%clk 0:00:12.7]} 16. Bb5 {[%clk 0:02:15.4]} 16...
Bd7 {[%clk 0:00:11.9]} 17. Bc4 {[%clk 0:02:15.7]} 17... a6 {[%clk 0:00:04.6]}
18. a4 {[%clk 0:02:10.2]} 18... Qa5 {[%clk 0:00:05]} 19. Qd3 {[%clk 0:02:05.2]}
19... Qb4 {[%clk 0:00:06]} 20. b3 {[%clk 0:02:03.6]} 20... Qa5 {[%clk
0:00:03.6]} 21. Bd6 {[%clk 0:02:01.1]} 21... Qd8 {[%clk 0:00:02.1]} 22. Bxc5
{[%clk 0:02:00.4]} 22... Qc8 {[%clk 0:00:02.5]} 23. Bd4 {[%clk 0:02:00]} 23...
Rd8 {[%clk 0:00:03.6]} 24. Qg3 {[%clk 0:01:51.1]} 24... Kh8 {[%clk 0:00:04.4]}
25. Qh4 {[%clk 0:01:39.6]} 25... Ng8 {[%clk 0:00:02.8]} 26. Ne4 {[%clk 0:01:34]}
26... f6 {[%clk 0:00:03.8]} 27. Nd6 {[%clk 0:01:31.7]} 1-0

[Event "*** Biggest EVER Titled Tuesday"]
[Site "Chess.com"]
[Date "2018.04.17"]
[Round "5"]
[White "SCIM"]
[Black "Daniela_Movileanu"]
[Result "1-0"]
[WhiteElo "2367"]
[BlackElo "2382"]
[TimeControl "180+2"]
[EndTime "14:07:00 PDT"]
[Termination "SCIM won by checkmate"]

1. d4 {[%clk 0:03:01.9]} 1... Nf6 {[%clk 0:02:59.1]} 2. c4 {[%clk 0:02:50.4]}
2... g6 {[%clk 0:02:59.3]} 3. Nc3 {[%clk 0:02:50.6]} 3... d5 {[%clk 0:03:00.2]}
4. Bg5 {[%clk 0:02:49.8]} 4... Bg7 {[%clk 0:02:59.8]} 5. Bxf6 {[%clk 0:02:49.5]}
5... exf6 {[%clk 0:03:00.2]} 6. Nxd5 {[%clk 0:02:41]} 6... f5 {[%clk 0:02:58.3]}
7. Nf3 {[%clk 0:02:39.9]} 7... c6 {[%clk 0:02:59.3]} 8. Nc3 {[%clk 0:02:38.9]}
8... O-O {[%clk 0:02:59.7]} 9. e3 {[%clk 0:02:38.8]} 9... Re8 {[%clk 0:03:00.7]}
10. Be2 {[%clk 0:02:38]} 10... f4 {[%clk 0:03:01.4]} 11. exf4 {[%clk 0:02:16.6]}
11... Bg4 {[%clk 0:03:01.4]} 12. O-O {[%clk 0:02:09.8]} 12... Nd7 {[%clk
0:03:01.4]} 13. Ne5 {[%clk 0:01:37]} 13... Bxe2 {[%clk 0:03:00.5]} 14. Nxe2
{[%clk 0:01:37.6]} 14... Nb6 {[%clk 0:02:58.6]} 15. b3 {[%clk 0:01:32.5]} 15...
Qf6 {[%clk 0:02:52.1]} 16. g3 {[%clk 0:01:23.8]} 16... Rad8 {[%clk 0:02:52.1]}
17. Qc2 {[%clk 0:01:21.3]} 17... h5 {[%clk 0:02:42]} 18. h4 {[%clk 0:01:19.2]}
18... Qe6 {[%clk 0:02:34.9]} 19. Rfe1 {[%clk 0:01:08.2]} 19... Qh3 {[%clk
0:02:34.1]} 20. Rad1 {[%clk 0:01:00.9]} 20... Nd7 {[%clk 0:02:31.3]} 21. Nf3
{[%clk 0:00:53.9]} 21... Nf6 {[%clk 0:02:30.3]} 22. Ng5 {[%clk 0:00:52.6]} 22...
Qd7 {[%clk 0:02:29.5]} 23. Nc3 {[%clk 0:00:51.9]} 23... Ng4 {[%clk 0:02:29.8]}
24. d5 {[%clk 0:00:42.9]} 24... Qc7 {[%clk 0:02:20.5]} 25. Rxe8+ {[%clk
0:00:40.6]} 25... Rxe8 {[%clk 0:02:20.5]} 26. d6 {[%clk 0:00:40.9]} 26... Qb6
{[%clk 0:02:20.8]} 27. d7 {[%clk 0:00:39.7]} 27... Rd8 {[%clk 0:02:21.8]} 28.
Nce4 {[%clk 0:00:38.3]} 28... c5 {[%clk 0:02:15.9]} 29. Rd6 {[%clk 0:00:36.1]}
29... Qc7 {[%clk 0:02:13.9]} 30. Nxf7 {[%clk 0:00:33.4]} 30... Kxf7 {[%clk
0:02:10.2]} 31. Ng5+ {[%clk 0:00:32.8]} 31... Kg8 {[%clk 0:01:58.9]} 32. Qxg6
{[%clk 0:00:31.1]} 32... Rxd7 {[%clk 0:01:55.3]} 33. Qe8+ {[%clk 0:00:28.5]}
33... Bf8 {[%clk 0:01:55.9]} 34. Rxd7 {[%clk 0:00:26.4]} 34... Qc6 {[%clk
0:01:57.2]} 35. Qf7+ {[%clk 0:00:22.9]} 35... Kh8 {[%clk 0:01:57.2]} 36. Qh7#
{[%clk 0:00:22.9]} 1-0

[Event "*** Biggest EVER Titled Tuesday"]
[Site "Chess.com"]
[Date "2018.04.17"]
[Round "5"]
[White "Th3ChessViking"]
[Black "Winehouse83"]
[Result "1-0"]
[WhiteElo "2384"]
[BlackElo "2336"]
[TimeControl "180+2"]
[EndTime "14:07:01 PDT"]
[Termination "Th3ChessViking won by resignation"]

1. d4 {[%clk 0:02:46.5]} 1... Nf6 {[%clk 0:02:59.5]} 2. Nf3 {[%clk 0:02:37.8]}
2... g6 {[%clk 0:03:00.1]} 3. Bf4 {[%clk 0:02:38.9]} 3... Bg7 {[%clk 0:03:00.4]}
4. e3 {[%clk 0:02:40.4]} 4... O-O {[%clk 0:03:00.5]} 5. h3 {[%clk 0:02:41.8]}
5... c5 {[%clk 0:02:58.1]} 6. c3 {[%clk 0:02:41.8]} 6... Qb6 {[%clk 0:02:55.3]}
7. Qb3 {[%clk 0:02:42]} 7... d5 {[%clk 0:02:52.6]} 8. Nbd2 {[%clk 0:02:39.3]}
8... c4 {[%clk 0:02:52.7]} 9. Qxb6 {[%clk 0:02:39.3]} 9... axb6 {[%clk
0:02:54.5]} 10. a3 {[%clk 0:02:40.6]} 10... Nc6 {[%clk 0:02:54.4]} 11. Rc1
{[%clk 0:02:42.1]} 11... h6 {[%clk 0:02:52.6]} 12. Be2 {[%clk 0:02:43.4]} 12...
g5 {[%clk 0:02:53.2]} 13. Bg3 {[%clk 0:02:41.7]} 13... Bf5 {[%clk 0:02:53.9]}
14. O-O {[%clk 0:02:41.1]} 14... Nd7 {[%clk 0:02:51]} 15. Bd1 {[%clk 0:02:41.2]}
15... Bd3 {[%clk 0:02:47.7]} 16. Re1 {[%clk 0:02:36.2]} 16... f5 {[%clk
0:02:49]} 17. Bc2 {[%clk 0:02:31.9]} 17... Bxc2 {[%clk 0:02:45.9]} 18. Rxc2
{[%clk 0:02:33]} 18... e5 {[%clk 0:02:44.9]} 19. dxe5 {[%clk 0:02:24.8]} 19...
Bxe5 {[%clk 0:02:44.8]} 20. Bxe5 {[%clk 0:02:19.2]} 20... Ndxe5 {[%clk
0:02:44.5]} 21. Nxe5 {[%clk 0:02:19.3]} 21... Nxe5 {[%clk 0:02:46.4]} 22. Nf3
{[%clk 0:02:18.4]} 22... Nd3 {[%clk 0:02:45]} 23. Rd1 {[%clk 0:02:19.7]} 23...
f4 {[%clk 0:02:44]} 24. Ne1 {[%clk 0:01:55.1]} 24... fxe3 {[%clk 0:02:36.7]} 25.
Nxd3 {[%clk 0:01:55.1]} 25... cxd3 {[%clk 0:02:36.7]} 26. Rxd3 {[%clk 0:01:57]}
26... exf2+ {[%clk 0:02:33.2]} 27. Rxf2 {[%clk 0:01:58.9]} 27... Rxf2 {[%clk
0:02:34]} 28. Kxf2 {[%clk 0:02:00.8]} 28... Rf8+ {[%clk 0:02:30.8]} 29. Ke3
{[%clk 0:02:01.1]} 29... Rf5 {[%clk 0:02:31.3]} 30. Kd4 {[%clk 0:02:01.7]} 30...
Kf7 {[%clk 0:02:30.5]} 31. Rd2 {[%clk 0:01:57.8]} 31... Ke6 {[%clk 0:02:29.5]}
32. Re2+ {[%clk 0:01:58.2]} 32... Kd6 {[%clk 0:02:30.4]} 33. Rd2 {[%clk
0:01:52]} 33... Rf4+ {[%clk 0:02:30.7]} 34. Ke3 {[%clk 0:01:49.4]} 34... Ke5
{[%clk 0:02:29.7]} 35. Rd4 {[%clk 0:01:46.4]} 35... Re4+ {[%clk 0:02:12.3]} 36.
Rxe4+ {[%clk 0:01:26.7]} 36... dxe4 {[%clk 0:02:14.2]} 37. c4 {[%clk 0:01:26.9]}
37... h5 {[%clk 0:02:13.7]} 38. g4 {[%clk 0:01:25.4]} 38... h4 {[%clk
0:02:02.9]} 39. a4 {[%clk 0:01:23.1]} 39... Kd6 {[%clk 0:01:55.3]} 40. Kxe4
{[%clk 0:01:24.9]} 40... Kc5 {[%clk 0:01:56.6]} 41. Kf5 {[%clk 0:01:18.5]} 41...
Kxc4 {[%clk 0:01:57.6]} 42. Kxg5 {[%clk 0:01:20.4]} 42... Kb3 {[%clk 0:01:59.4]}
43. Kf6 {[%clk 0:01:22.2]} 43... Kxb2 {[%clk 0:02:01.2]} 44. g5 {[%clk
0:01:24.1]} 44... Ka3 {[%clk 0:02:03.1]} 45. g6 {[%clk 0:01:26]} 45... Kxa4
{[%clk 0:02:04.8]} 46. g7 {[%clk 0:01:27.9]} 46... b5 {[%clk 0:02:06.7]} 47.
g8=Q {[%clk 0:01:29.8]} 47... b4 {[%clk 0:02:08.3]} 48. Qa2+ {[%clk 0:01:30.2]}
1-0

[Event "*** Biggest EVER Titled Tuesday"]
[Site "Chess.com"]
[Date "2018.04.17"]
[Round "5"]
[White "TastyFrenchFries"]
[Black "TheCount"]
[Result "0-1"]
[WhiteElo "2328"]
[BlackElo "2547"]
[TimeControl "180+2"]
[EndTime "14:07:14 PDT"]
[Termination "TheCount won by resignation"]

1. Na3 {[%clk 0:02:47]} 1... Nf6 {[%clk 0:02:59.5]} 2. c4 {[%clk 0:02:47.4]}
2... e5 {[%clk 0:02:58.8]} 3. g3 {[%clk 0:02:47.3]} 3... d5 {[%clk 0:02:53.8]}
4. Bg2 {[%clk 0:02:46.2]} 4... c6 {[%clk 0:02:53]} 5. cxd5 {[%clk 0:02:41]} 5...
cxd5 {[%clk 0:02:54]} 6. d3 {[%clk 0:02:39.7]} 6... Nc6 {[%clk 0:02:55]} 7. Nf3
{[%clk 0:02:37]} 7... Bb4+ {[%clk 0:02:27.3]} 8. Bd2 {[%clk 0:02:35.2]} 8... e4
{[%clk 0:02:28.8]} 9. Ng1 {[%clk 0:02:24.8]} 9... Qa5 {[%clk 0:02:19.3]} 10.
Bxb4 {[%clk 0:02:10.9]} 10... Nxb4 {[%clk 0:02:05.3]} 11. Qd2 {[%clk 0:01:50.1]}
11... exd3 {[%clk 0:02:01.5]} 12. exd3 {[%clk 0:01:47.2]} 12... Nxd3+ {[%clk
0:01:59.1]} 13. Ke2 {[%clk 0:01:30.7]} 13... Qxd2+ {[%clk 0:01:59.5]} 14. Kxd2
{[%clk 0:01:32.6]} 14... Nxf2 {[%clk 0:02:00.7]} 15. Re1+ {[%clk 0:01:32.5]}
15... Be6 {[%clk 0:02:00]} 16. Nf3 {[%clk 0:01:24.7]} 16... Nxh1 {[%clk
0:02:00.5]} 17. Rxh1 {[%clk 0:01:23.9]} 17... O-O {[%clk 0:01:59.8]} 18. Nc2
{[%clk 0:01:20.6]} 18... Bf5 {[%clk 0:01:59.9]} 19. Ncd4 {[%clk 0:01:18.8]}
19... Be4 {[%clk 0:02:01.4]} 20. Re1 {[%clk 0:01:14.4]} 20... Rfe8 {[%clk
0:02:01.3]} 21. Bf1 {[%clk 0:01:11.1]} 21... Bxf3 {[%clk 0:02:00.6]} 22. Nxf3
{[%clk 0:01:13]} 22... Rxe1 {[%clk 0:02:01.1]} 23. Kxe1 {[%clk 0:01:12.6]} 23...
Rc8 {[%clk 0:02:02.5]} 24. Kd2 {[%clk 0:01:02.8]} 24... Ne4+ {[%clk 0:02:01.9]}
25. Kd3 {[%clk 0:00:46.9]} 25... Rc1 {[%clk 0:02:00.4]} 26. Be2 {[%clk
0:00:46.4]} 26... f6 {[%clk 0:01:56.9]} 27. Kd4 {[%clk 0:00:46.4]} 27... Rc2
{[%clk 0:01:54]} 28. Bd3 {[%clk 0:00:41.8]} 28... Rxb2 {[%clk 0:01:49.6]} 29.
Kxd5 {[%clk 0:00:39.9]} 29... Ng5 {[%clk 0:01:50.8]} 30. Nd4 {[%clk 0:00:33.3]}
30... Rxh2 {[%clk 0:01:34.4]} 31. Kd6 {[%clk 0:00:25.9]} 31... Rd2 {[%clk
0:01:28.8]} 32. Bc4+ {[%clk 0:00:25]} 32... Kf8 {[%clk 0:01:24.9]} 33. Kd5
{[%clk 0:00:19.9]} 33... Nf3 {[%clk 0:01:24.7]} 0-1

[Event "*** Biggest EVER Titled Tuesday"]
[Site "Chess.com"]
[Date "2018.04.17"]
[Round "5"]
[White "djamir"]
[Black "pedromartinez91"]
[Result "1-0"]
[WhiteElo "2635"]
[BlackElo "2407"]
[TimeControl "180+2"]
[EndTime "14:07:26 PDT"]
[Termination "djamir won by resignation"]

1. d4 {[%clk 0:03:01.9]} 1... Nf6 {[%clk 0:03:00.2]} 2. Nf3 {[%clk 0:03:02.4]}
2... g6 {[%clk 0:02:57]} 3. Bf4 {[%clk 0:03:01.7]} 3... Bg7 {[%clk 0:02:57.1]}
4. h3 {[%clk 0:03:02.8]} 4... O-O {[%clk 0:02:56.5]} 5. e3 {[%clk 0:03:04.1]}
5... d5 {[%clk 0:02:58.4]} 6. Be2 {[%clk 0:03:02.9]} 6... c5 {[%clk 0:03:00.3]}
7. c3 {[%clk 0:03:03.6]} 7... Nc6 {[%clk 0:03:01.1]} 8. O-O {[%clk 0:03:04.2]}
8... Nd7 {[%clk 0:03:00.7]} 9. Nbd2 {[%clk 0:03:00.4]} 9... e5 {[%clk
0:02:59.3]} 10. dxe5 {[%clk 0:03:01.4]} 10... Ndxe5 {[%clk 0:03:01.2]} 11. Nxe5
{[%clk 0:03:02.5]} 11... Nxe5 {[%clk 0:03:03.1]} 12. Nf3 {[%clk 0:03:03.7]}
12... Nc6 {[%clk 0:03:00.1]} 13. Qa4 {[%clk 0:02:58.8]} 13... h6 {[%clk
0:02:56.7]} 14. Rfd1 {[%clk 0:02:58.5]} 14... Be6 {[%clk 0:02:57.5]} 15. e4
{[%clk 0:02:44.4]} 15... d4 {[%clk 0:02:57.4]} 16. cxd4 {[%clk 0:02:44.2]} 16...
Nxd4 {[%clk 0:02:59.3]} 17. Nxd4 {[%clk 0:02:43]} 17... cxd4 {[%clk 0:03:01.2]}
18. e5 {[%clk 0:02:27]} 18... Qh4 {[%clk 0:02:38.7]} 19. Bg3 {[%clk 0:02:20.4]}
19... Qe7 {[%clk 0:02:32.4]} 20. Rxd4 {[%clk 0:02:14.4]} 20... a6 {[%clk
0:02:29.2]} 21. Rad1 {[%clk 0:02:07.2]} 21... Qc5 {[%clk 0:02:29.2]} 22. Qb4
{[%clk 0:02:03.1]} 22... Qc7 {[%clk 0:02:22.3]} 23. Rd6 {[%clk 0:01:42.5]} 23...
Rfc8 {[%clk 0:02:22.2]} 24. a3 {[%clk 0:01:35.2]} 24... Bf8 {[%clk 0:02:18.7]}
25. Bf3 {[%clk 0:01:25.4]} 25... Rab8 {[%clk 0:02:18.2]} 26. Qf4 {[%clk
0:01:16.4]} 26... g5 {[%clk 0:01:59]} 27. Qd4 {[%clk 0:00:42.1]} 27... b5 {[%clk
0:01:52.5]} 28. Rxa6 {[%clk 0:00:36.7]} 28... b4 {[%clk 0:01:47.7]} 29. Bg4
{[%clk 0:00:22.6]} 29... Rd8 {[%clk 0:01:47.2]} 30. Rd6 {[%clk 0:00:20.9]} 30...
bxa3 {[%clk 0:01:43.4]} 31. bxa3 {[%clk 0:00:21.7]} 31... Bxd6 {[%clk
0:01:39.8]} 32. exd6 {[%clk 0:00:23.6]} 32... Qd7 {[%clk 0:01:41.2]} 33. Qf6
{[%clk 0:00:21.1]} 33... Bxg4 {[%clk 0:01:40.1]} 34. Be5 {[%clk 0:00:20.6]} 1-0

[Event "*** Biggest EVER Titled Tuesday"]
[Site "Chess.com"]
[Date "2018.04.17"]
[Round "5"]
[White "timator"]
[Black "Safar_From_Afar"]
[Result "0-1"]
[WhiteElo "2347"]
[BlackElo "2267"]
[TimeControl "180+2"]
[EndTime "14:07:29 PDT"]
[Termination "Safar_From_Afar won on time"]

1. Nf3 {[%clk 0:02:37.6]} 1... g6 {[%clk 0:03:00]} 2. g3 {[%clk 0:02:39.5]} 2...
Bg7 {[%clk 0:03:00.8]} 3. Bg2 {[%clk 0:02:41.4]} 3... d6 {[%clk 0:03:01.3]} 4.
d4 {[%clk 0:02:38.6]} 4... Nf6 {[%clk 0:03:01.4]} 5. O-O {[%clk 0:02:40.5]} 5...
O-O {[%clk 0:03:01.4]} 6. c4 {[%clk 0:02:38.9]} 6... Nc6 {[%clk 0:02:52.9]} 7.
Nc3 {[%clk 0:02:40.8]} 7... Bf5 {[%clk 0:02:52.6]} 8. d5 {[%clk 0:02:24.8]} 8...
Na5 {[%clk 0:02:52.1]} 9. Nh4 {[%clk 0:02:26.3]} 9... Bd7 {[%clk 0:02:47.9]} 10.
Qd3 {[%clk 0:02:27.6]} 10... c5 {[%clk 0:02:47.2]} 11. b3 {[%clk 0:02:28.6]}
11... a6 {[%clk 0:02:43.8]} 12. Bb2 {[%clk 0:02:29.8]} 12... Rb8 {[%clk
0:02:40.2]} 13. Ne4 {[%clk 0:02:31]} 13... Re8 {[%clk 0:02:26.6]} 14. Bc3 {[%clk
0:02:29.6]} 14... Nxe4 {[%clk 0:02:23.5]} 15. Bxe4 {[%clk 0:02:25.3]} 15... Bxc3
{[%clk 0:02:18.9]} 16. Qxc3 {[%clk 0:02:27.2]} 16... e5 {[%clk 0:02:18]} 17.
dxe6 {[%clk 0:02:26.4]} 17... Bxe6 {[%clk 0:02:16.3]} 18. Bg2 {[%clk 0:02:23.6]}
18... b5 {[%clk 0:02:17.2]} 19. cxb5 {[%clk 0:02:24]} 19... axb5 {[%clk
0:02:17.3]} 20. Rfd1 {[%clk 0:02:25]} 20... b4 {[%clk 0:02:14.2]} 21. Qd3 {[%clk
0:02:25.2]} 21... c4 {[%clk 0:02:11.8]} 22. bxc4 {[%clk 0:01:51.6]} 22... Bxc4
{[%clk 0:02:13.7]} 23. Qd4 {[%clk 0:01:53.2]} 23... b3 {[%clk 0:02:00.3]} 24. e3
{[%clk 0:01:05.9]} 24... b2 {[%clk 0:01:54.8]} 25. Rab1 {[%clk 0:01:05.7]} 25...
Qb6 {[%clk 0:01:54.5]} 26. Qd2 {[%clk 0:00:28.2]} 26... Bxa2 {[%clk 0:01:17.8]}
27. Rxb2 {[%clk 0:00:28.7]} 27... Qxb2 {[%clk 0:01:16.4]} 28. Qxa5 {[%clk
0:00:29.3]} 28... Qc2 {[%clk 0:01:12.5]} 29. Re1 {[%clk 0:00:24.7]} 29... Rb2
{[%clk 0:01:09.4]} 0-1

[Event "*** Biggest EVER Titled Tuesday"]
[Site "Chess.com"]
[Date "2018.04.17"]
[Round "5"]
[White "GoingKronos"]
[Black "ENEASZ"]
[Result "1/2-1/2"]
[WhiteElo "2386"]
[BlackElo "2459"]
[TimeControl "180+2"]
[EndTime "14:07:31 PDT"]
[Termination "Game drawn by repetition"]

1. d4 {[%clk 0:03:00.2]} 1... d6 {[%clk 0:03:00.3]} 2. Nf3 {[%clk 0:03:00.2]}
2... g6 {[%clk 0:03:01]} 3. g3 {[%clk 0:02:57.4]} 3... Bg7 {[%clk 0:03:02.2]} 4.
Bg2 {[%clk 0:02:58.5]} 4... Nf6 {[%clk 0:03:03.5]} 5. c4 {[%clk 0:02:59.2]} 5...
O-O {[%clk 0:03:05.4]} 6. O-O {[%clk 0:03:00.2]} 6... Nc6 {[%clk 0:03:06.5]} 7.
Nc3 {[%clk 0:03:00.7]} 7... Bf5 {[%clk 0:03:08.1]} 8. Ne1 {[%clk 0:02:57]} 8...
e5 {[%clk 0:03:08.4]} 9. d5 {[%clk 0:02:54.9]} 9... Ne7 {[%clk 0:03:09.4]} 10.
e4 {[%clk 0:02:55.9]} 10... Bd7 {[%clk 0:03:10.6]} 11. Nd3 {[%clk 0:02:57]}
11... Ne8 {[%clk 0:02:48.9]} 12. Be3 {[%clk 0:02:44.8]} 12... c6 {[%clk
0:02:48.6]} 13. Qd2 {[%clk 0:02:41.7]} 13... cxd5 {[%clk 0:02:47.9]} 14. cxd5
{[%clk 0:02:42.8]} 14... f5 {[%clk 0:02:41.5]} 15. f4 {[%clk 0:02:41.1]} 15...
fxe4 {[%clk 0:02:23.5]} 16. Bxe4 {[%clk 0:02:41.2]} 16... Bh3 {[%clk 0:02:21.8]}
17. Bg2 {[%clk 0:02:41.2]} 17... Bxg2 {[%clk 0:02:22.3]} 18. Kxg2 {[%clk
0:02:41.8]} 18... Nf5 {[%clk 0:02:23.4]} 19. fxe5 {[%clk 0:02:36.9]} 19... dxe5
{[%clk 0:02:25.3]} 20. Nc5 {[%clk 0:02:11]} 20... Qe7 {[%clk 0:02:01.2]} 21. Ne6
{[%clk 0:01:59.1]} 21... Nxe3+ {[%clk 0:01:39.7]} 22. Qxe3 {[%clk 0:01:59.7]}
22... Rxf1 {[%clk 0:01:41.6]} 23. Rxf1 {[%clk 0:02:00]} 23... Nc7 {[%clk
0:01:43.5]} 24. Nxc7 {[%clk 0:01:41.1]} 24... Qxc7 {[%clk 0:01:45.4]} 25. Ne4
{[%clk 0:01:41.5]} 25... Rd8 {[%clk 0:01:40.4]} 26. d6 {[%clk 0:01:29.4]} 26...
Qc2+ {[%clk 0:01:39.9]} 27. Rf2 {[%clk 0:01:28.8]} 27... Qc4 {[%clk 0:01:40.2]}
28. b3 {[%clk 0:01:23.6]} 28... Qc6 {[%clk 0:01:37.7]} 29. Rd2 {[%clk
0:01:13.3]} 29... Bh6 {[%clk 0:01:36.7]} 30. Qxh6 {[%clk 0:01:06.4]} 30... Qxe4+
{[%clk 0:01:37.1]} 31. Kh3 {[%clk 0:00:46.5]} 31... Qf5+ {[%clk 0:01:37.9]} 32.
Kg2 {[%clk 0:00:45]} 32... Rf8 {[%clk 0:01:38.9]} 33. Qxf8+ {[%clk 0:00:27.4]}
33... Kxf8 {[%clk 0:01:35.1]} 34. d7 {[%clk 0:00:28.7]} 34... Qe4+ {[%clk
0:01:29.9]} 35. Kh3 {[%clk 0:00:28.4]} 35... Qf5+ {[%clk 0:01:28.4]} 36. Kg2
{[%clk 0:00:28.2]} 36... Qe4+ {[%clk 0:01:29.6]} 37. Kh3 {[%clk 0:00:18.9]}
37... Qf5+ {[%clk 0:01:30.7]} 38. Kg2 {[%clk 0:00:19.9]} 38... Qe4+ {[%clk
0:01:32.1]} 39. Kh3 {[%clk 0:00:21]} 39... Qf5+ {[%clk 0:01:33.5]} 1/2-1/2

[Event "*** Biggest EVER Titled Tuesday"]
[Site "Chess.com"]
[Date "2018.04.17"]
[Round "5"]
[White "tigra"]
[Black "Korchmar_Vasiliy"]
[Result "1-0"]
[WhiteElo "2707"]
[BlackElo "2670"]
[TimeControl "180+2"]
[EndTime "14:07:32 PDT"]
[Termination "tigra won on time"]

1. e4 {[%clk 0:03:01.9]} 1... c5 {[%clk 0:02:59.6]} 2. Nf3 {[%clk 0:02:59.4]}
2... d6 {[%clk 0:03:00.8]} 3. d4 {[%clk 0:02:59.3]} 3... cxd4 {[%clk 0:03:02.1]}
4. Nxd4 {[%clk 0:03:01.2]} 4... Nf6 {[%clk 0:03:03.4]} 5. Nc3 {[%clk 0:03:02.5]}
5... Nc6 {[%clk 0:03:05]} 6. Bg5 {[%clk 0:03:02.9]} 6... e6 {[%clk 0:03:06.3]}
7. Qd2 {[%clk 0:03:03.6]} 7... a6 {[%clk 0:03:07.6]} 8. O-O-O {[%clk 0:03:03.4]}
8... h6 {[%clk 0:03:08.3]} 9. Bf4 {[%clk 0:02:58.1]} 9... Bd7 {[%clk 0:03:00.5]}
10. Nf3 {[%clk 0:02:52.4]} 10... e5 {[%clk 0:02:44.5]} 11. Be3 {[%clk
0:02:53.2]} 11... b5 {[%clk 0:02:40.3]} 12. a3 {[%clk 0:02:53.9]} 12... Be7
{[%clk 0:02:33.1]} 13. h3 {[%clk 0:02:52.9]} 13... b4 {[%clk 0:02:25.6]} 14.
axb4 {[%clk 0:02:52.6]} 14... Nxb4 {[%clk 0:02:27.5]} 15. Bc4 {[%clk 0:02:43.1]}
15... O-O {[%clk 0:02:26]} 16. Bxh6 {[%clk 0:02:37.1]} 16... Rc8 {[%clk
0:01:57]} 17. Bb3 {[%clk 0:01:52.7]} 17... gxh6 {[%clk 0:01:55.5]} 18. Qxh6
{[%clk 0:01:50.7]} 18... Nh7 {[%clk 0:01:45.3]} 19. Kb1 {[%clk 0:01:35.3]} 19...
Qa5 {[%clk 0:01:38]} 20. h4 {[%clk 0:01:05.1]} 20... Rxc3 {[%clk 0:00:40.1]} 21.
Ng5 {[%clk 0:01:02]} 21... Nf6 {[%clk 0:00:25.1]} 22. Qg6+ {[%clk 0:00:52.3]}
22... Kh8 {[%clk 0:00:25.7]} 23. Bxf7 {[%clk 0:00:51.3]} 23... Bf5 {[%clk
0:00:08.7]} 24. exf5 {[%clk 0:00:46.1]} 1-0